bitfinex/quotes_SOLUSD_20260306
["timestamp","ask_amount","ask_price","bid_price","bid_amount"]
[1772812283445,11.01830914,84.33,84.273,29.66517991]
[1772812283446,11.01830914,84.33,84.28,0.5]
[1772812283641,0.28432314,84.341,84.289,0.5]
[1772812283839,0.49522786,84.319,84.268,11.86689901]
[1772812284052,0.49522786,84.319,84.268,41.53415111]
[1772812284247,0.49522786,84.339,84.268,41.53415111]
[1772812284547,0.49522786,84.338,84.268,41.53415111]
[1772812284736,0.49522786,84.335,84.25,59.34660733]
[1772812284940,0.49522786,84.319,84.242,41.54697181]
[1772812285331,0.49522786,84.318,84.242,41.54697181]
[1772812285544,0.49522786,84.299,84.242,41.54697181]
[1772812285743,0.49522786,84.3,84.234,0.49089293]
[1772812285947,0.49522786,84.319,84.234,0.49089293]
[1772812286159,0.49522786,84.309,84.235,0.49089293]
[1772812286759,0.49522786,84.309,84.221,3.69383402]
[1772812286760,0.49522786,84.307,84.237,0.49089293]
[1772812286937,0.49522786,84.306,84.237,0.49089293]
[1772812287143,41.51444701,84.308,84.237,0.49089293]
[1772812287360,11.86127057,84.308,84.24,0.49089293]
[1772812287555,11.86127057,84.308,84.241,0.49089293]
[1772812287556,41.51444701,84.308,84.241,0.49089293]
[1772812287767,11.86067945,84.313,84.241,0.49089293]
[1772812288155,11.85901997,84.324,84.241,0.49089293]
[1772812289240,29.64754992,84.324,84.246,0.49089293]
[1772812289759,29.64754992,84.324,84.243,0.28432314]
[1772812289760,4.82477569,84.319,84.247,0.49089293]
[1772812289970,0.49522786,84.309,84.247,0.49089293]
[1772812290540,0.49522786,84.308,84.247,0.49089293]
[1772812291240,0.49522786,84.306,84.249,0.49089293]
[1772812291441,11.86141127,84.307,84.249,0.49089293]
[1772812291761,0.47945722,84.325,84.249,0.77521607]
[1772812291957,7.28584263,84.328,84.249,0.77521607]
[1772812291958,11.85859807,84.327,84.25,0.49031753]
[1772812292262,41.50509326,84.327,84.25,0.49031753]
[1772812292461,11.85859807,84.327,84.25,0.49031753]
[1772812293349,0.47945722,84.326,84.253,0.49031753]
[1772812293550,0.47945722,84.319,84.253,0.49031753]
[1772812293957,0.47945722,84.318,84.253,0.49031753]
[1772812295862,0.47945722,84.315,84.255,0.49031753]
[1772812296858,0.47945722,84.315,84.256,0.49031753]
[1772812297049,11.85940262,84.322,84.256,0.49031753]
[1772812297451,0.47945722,84.321,84.256,0.49031753]
[1772812297950,0.47945722,84.319,84.257,0.14216157]
[1772812298458,0.47945722,84.326,84.26,0.14216157]
[1772812298779,7.28584263,84.328,84.26,0.14216157]
[1772812299261,0.47945722,84.326,84.26,0.14216157]
[1772812299864,11.85887933,84.325,84.265,0.49031753]
[1772812300067,0.47945722,84.324,84.265,0.49031753]
[1772812300266,0.47945722,84.323,84.265,0.49031753]
[1772812300453,0.47945722,84.319,84.265,0.49031753]
[1772812300656,0.47945722,84.309,84.254,0.49031753]
[1772812300850,0.47945722,84.309,84.254,12.35918341]
[1772812301252,0.47945722,84.299,84.254,12.35918341]
[1772812301458,0.47945722,84.298,84.244,11.87028156]
[1772812301766,0.47945722,84.289,84.244,11.87028156]
[1772812301946,11.01830914,84.29,84.231,29.68018064]
[1772812301947,0.47945722,84.287,84.239,12.36130365]
[1772812302263,0.47945722,84.259,84.215,0.73849076]
[1772812302665,0.47945722,84.259,84.216,12.3645457]
[1772812302843,0.47945722,84.259,84.216,0.49031753]
[1772812303545,0.47945722,84.259,84.215,0.73849076]
[1772812304170,0.47945722,84.257,84.215,0.73849076]
[1772812304462,0.47945722,84.267,84.217,0.49031753]
[1772812304646,0.47945722,84.278,84.217,0.49031753]
[1772812304847,0.47945722,84.29,84.218,0.49031753]
[1772812306169,0.47945722,84.288,84.221,0.49031753]
[1772812306542,0.47945722,84.279,84.221,0.49031753]
[1772812308154,0.47945722,84.279,84.223,0.49031753]
[1772812309074,11.86549277,84.278,84.223,0.49031753]
[1772812309253,0.47945722,84.277,84.223,0.49031753]
[1772812310168,0.47945722,84.277,84.225,0.49031753]
[1772812310364,12.34513919,84.277,84.225,0.49031753]
[1772812310870,0.47945722,84.276,84.225,0.49031753]
[1772812311463,0.47945722,84.276,84.227,0.49031753]
[1772812311656,0.47945722,84.282,84.227,0.49031753]
[1772812312549,0.47945722,84.279,84.221,11.87342793]
[1772812312751,0.47945722,84.269,84.221,11.87342793]
[1772812312946,0.47945722,84.259,84.215,0.73849076]
[1772812313162,0.47945722,84.259,84.216,11.87422817]
[1772812313559,0.47945722,84.257,84.216,11.87422817]
[1772812314159,0.47945722,84.257,84.217,0.49031753]
[1772812315459,0.47945722,84.257,84.216,11.87422817]
[1772812315460,11.01830914,84.25,84.215,0.73849076]
[1772812315659,0.46988166,84.249,84.215,0.73849076]
[1772812316971,0.46988166,84.249,84.216,11.87422817]
[1772812317280,11.86859096,84.256,84.217,0.48423337]
[1772812317471,0.46988166,84.256,84.218,11.87394618]
[1772812317676,0.46988166,84.256,84.219,0.48423337]
[1772812317981,0.46988166,84.249,84.215,0.73849076]
[1772812318379,0.46988166,84.249,84.215,0.48423452]
[1772812318572,0.46988166,84.249,84.215,1.15e-06]
[1772812319576,0.46988166,84.247,84.215,1.15e-06]
[1772812320384,0.46988166,84.229,84.215,1.15e-06]
[1772812320565,0.46988166,84.239,84.215,1.15e-06]
[1772812320763,0.46988166,84.247,84.215,1.15e-06]
[1772812321172,0.46988166,84.268,84.215,1.15e-06]
[1772812321378,11.01830914,84.26,84.215,1.15e-06]
[1772812321575,0.49271915,84.257,84.215,1.15e-06]
[1772812321979,11.86830924,84.258,84.215,1.15e-06]
[1772812322184,0.49271915,84.262,84.215,1.15e-06]
[1772812322379,0.49271915,84.259,84.215,1.15e-06]
[1772812323795,0.49271915,84.257,84.215,1.15e-06]
[1772812326490,0.49271915,84.255,84.215,1.15e-06]
[1772812326993,11.86757306,84.264,84.215,1.15e-06]
[1772812328590,0.49271915,84.277,84.215,1.15e-06]
[1772812328591,11.86577436,84.276,84.215,1.15e-06]
[1772812329067,7.28825072,84.292,84.216,0.45050492]
[1772812329269,0.49271915,84.291,84.221,0.45050492]
[1772812329488,0.49271915,84.291,84.222,0.45050492]
[1772812329688,0.49271915,84.289,84.222,0.45050492]
[1772812331180,7.28825072,84.292,84.224,0.45050492]
[1772812331181,0.49271915,84.287,84.224,0.45050492]
[1772812333291,0.49271915,84.285,84.226,0.45050492]
[1772812334178,7.28825072,84.292,84.226,0.45050492]
[1772812334179,0.49271915,84.289,84.226,0.45050492]
[1772812334384,7.28825072,84.292,84.227,0.45050492]
[1772812334595,0.49271915,84.298,84.227,0.45050492]
[1772812334899,0.49271915,84.298,84.229,0.45050492]
[1772812335126,0.28432314,84.327,84.225,100.92015433]
[1772812335127,0.49271915,84.357,84.234,0.45050492]
[1772812335295,0.49271915,84.339,84.241,0.45050492]
[1772812335477,0.49271915,84.328,84.241,0.45050492]
[1772812336884,0.49271915,84.319,84.241,0.45050492]
[1772812337086,0.49271915,84.309,84.241,0.45050492]
[1772812337292,0.28432314,84.319,84.243,0.45050492]
[1772812337293,0.49271915,84.307,84.243,0.45050492]
[1772812338399,0.49271915,84.299,84.243,0.45050492]
[1772812340300,0.49271915,84.297,84.245,0.45050492]
[1772812341700,0.49271915,84.295,84.247,0.45050492]
[1772812341907,0.49271915,84.289,84.237,0.45050492]
[1772812342104,0.49271915,84.288,84.228,0.45050492]
[1772812342304,0.49271915,84.279,84.23,0.45050492]
[1772812342623,0.49271915,84.279,84.229,11.87239549]
[1772812342624,0.49271915,84.269,84.221,11.8735013]
[1772812342803,0.49271915,84.269,84.222,0.45050492]
[1772812343402,0.49271915,84.269,84.221,11.8735013]
[1772812344101,0.28432314,84.287,84.214,11.87451017]
[1772812344102,0.49271915,84.267,84.214,11.87451017]
[1772812344993,0.49271915,84.267,84.215,0.45050607]
[1772812345194,0.49271915,84.267,84.214,41.51129168]
[1772812346209,0.49271915,84.265,84.197,59.38426308]
[1772812346501,41.53513872,84.266,84.191,41.57213953]
[1772812346502,0.49271915,84.249,84.191,41.57213953]
[1772812347002,0.49271915,84.249,84.191,11.87775415]
[1772812347206,9.47980156,84.24,84.191,11.87775415]
[1772812347405,0.49271915,84.239,84.192,0.45050492]
[1772812348099,11.87112704,84.238,84.194,0.45050492]
[1772812348302,0.49271915,84.237,84.194,0.45050492]
[1772812348702,9.47980156,84.27,84.194,0.45050492]
[1772812348703,0.49271915,84.249,84.194,0.45050492]
[1772812348903,0.49271915,84.278,84.194,0.45050492]
[1772812350095,0.49271915,84.276,84.198,0.45050492]
[1772812350811,0.49271915,84.269,84.198,0.45050492]
[1772812351004,0.49271915,84.259,84.198,0.45050492]
[1772812351905,0.48937158,84.249,84.196,11.87704879]
[1772812352106,0.48937158,84.249,84.189,0.46195761]
[1772812352107,0.48937158,84.247,84.191,11.87775415]
[1772812352612,0.48937158,84.247,84.191,12.33971176]
[1772812352811,0.48937158,84.247,84.192,0.46195761]
[1772812354411,0.48937158,84.245,84.194,0.46195761]
[1772812356408,0.28432314,84.267,84.19,0.2624336]
[1772812356409,0.48937158,84.239,84.19,0.2624336]
[1772812357111,0.48937158,84.239,84.191,11.87775415]
[1772812358216,0.48937158,84.239,84.192,0.46195761]
[1772812358515,0.48937158,84.237,84.193,11.87747199]
[1772812359299,11.8705788,84.242,84.194,0.46195761]
[1772812359609,0.48937158,84.241,84.194,0.46195761]
[1772812359997,0.48937158,84.259,84.194,0.46195761]
[1772812360709,0.48937158,84.257,84.196,0.46195761]
[1772812362912,0.48937158,84.255,84.198,0.46195761]
[1772812364017,0.48937158,84.253,84.2,0.46195761]
[1772812364518,0.48937158,84.264,84.2,0.46195761]
[1772812365397,0.48937158,84.297,84.205,0.74628075]
[1772812365600,0.48937158,84.297,84.206,0.46195761]
[1772812365820,0.48937158,84.296,84.206,0.46195761]
[1772812366114,0.48937158,84.296,84.199,100.9513177]
[1772812366115,0.48937158,84.295,84.212,0.46195761]
[1772812366315,12.3524714,84.295,84.214,0.46195761]
[1772812366518,0.48937158,84.295,84.217,0.46195761]
[1772812366704,12.3524714,84.295,84.216,0.24628075]
[1772812367012,0.48937158,84.295,84.217,1.32957028]
[1772812367717,0.48937158,84.294,84.217,1.32957028]
[1772812367895,0.48937158,84.294,84.217,0.14216157]
[1772812368103,0.48937158,84.292,84.217,0.14216157]
[1772812368918,0.48937158,84.292,84.218,0.09721995]
[1772812370016,0.48937158,84.29,84.221,0.09721995]
[1772812370209,0.48937158,84.29,84.222,0.09721995]
[1772812370611,0.48937158,84.298,84.222,0.09721995]
[1772812370821,0.48937158,84.298,84.223,0.09721995]
[1772812371717,0.48937158,84.298,84.221,0.28432314]
[1772812371718,0.48937158,84.298,84.225,0.09721995]
[1772812371916,0.48937158,84.298,84.227,0.09721995]
[1772812372304,0.48937158,84.298,84.229,0.09721995]
[1772812372510,0.48937158,84.298,84.231,0.09721995]
[1772812373031,0.48937158,84.297,84.231,0.09721995]
[1772812373828,0.48937158,84.306,84.233,0.09721995]
[1772812374924,0.48937158,84.306,84.238,0.09721995]
[1772812375129,0.48937158,84.327,84.238,0.09721995]
[1772812375334,0.48937158,84.327,84.233,100.91056948]
[1772812375335,0.48937158,84.319,84.233,100.91056948]
[1772812375536,0.48571196,84.309,84.234,0.09721995]
[1772812375827,0.48571196,84.299,84.234,0.09721995]
[1772812376516,0.48571196,84.298,84.233,41.55141096]
[1772812376701,0.48571196,84.289,84.233,41.55141096]
[1772812376906,0.48571196,84.287,84.225,0.09721995]
[1772812378731,0.48571196,84.285,84.225,0.09721995]
[1772812380316,11.85859807,84.327,84.229,3.69383402]
[1772812380635,9.47980156,84.3,84.235,0.4620067]
[1772812380814,9.47980156,84.29,84.236,11.87140889]
[1772812381026,9.47980156,84.28,84.227,11.8726774]
[1772812381318,0.28432314,84.289,84.227,11.8726774]
[1772812381624,100.83156383,84.299,84.228,0.4620067]
[1772812381935,11.86253692,84.299,84.229,0.49011426]
[1772812382125,11.86127057,84.308,84.232,0.49011426]
[1772812382328,0.45762625,84.317,84.234,0.49011426]
[1772812382517,0.45762625,84.317,84.237,0.49011426]
[1772812382824,0.45762625,84.299,84.239,0.49011426]
[1772812383432,0.45762625,84.289,84.239,0.49011426]
[1772812384129,11.86014516,84.316,84.241,0.49011426]
[1772812384330,41.51050808,84.316,84.241,0.49011426]
[1772812384917,41.51050808,84.316,84.244,0.49011426]
[1772812385831,41.51050808,84.316,84.247,0.49011426]
[1772812386016,0.45762625,84.315,84.247,0.49011426]
[1772812387109,0.45762625,84.313,84.249,0.49011426]
[1772812388114,0.45762625,84.299,84.249,0.49011426]
[1772812389226,0.45762625,84.297,84.251,0.49011426]
[1772812389743,0.45762625,84.297,84.144,47.53742732]
[1772812389744,0.45762625,84.279,84.206,59.37801858]
[1772812390037,0.45762625,84.279,84.208,0.49011426]
[1772812390914,0.45762625,84.279,84.206,59.37801858]
[1772812390915,0.45762625,84.289,84.211,0.49011426]
[1772812391110,0.45762625,84.289,84.209,4.88135554]
[1772812391111,0.45762625,84.298,84.222,0.49011426]
[1772812391317,0.45762625,84.298,84.225,0.49011426]
[1772812391538,0.45762625,84.298,84.228,0.49011426]
[1772812391731,0.45762625,84.298,84.231,0.49011426]
[1772812392035,0.45762625,84.298,84.234,0.49011426]
[1772812392234,0.45762625,84.298,84.22,3.69383402]
[1772812392235,0.45762625,84.308,84.237,0.49011426]
[1772812392436,0.45762625,84.318,84.24,0.49011426]
[1772812392732,0.45762625,84.318,84.243,0.49011426]
[1772812392915,0.45762625,84.318,84.246,0.49011426]
[1772812393116,11.8600045,84.317,84.252,0.49011426]
[1772812393437,0.45762625,84.318,84.255,0.49011426]
[1772812393614,0.45762625,84.318,84.257,0.7744374]
[1772812393811,12.31671554,84.324,84.26,0.49011426]
[1772812394130,12.31671554,84.324,84.262,0.49011426]
[1772812395118,19.1166299,84.335,84.267,0.49011426]
[1772812395319,0.45762625,84.334,84.27,0.49011426]
[1772812397138,0.45762625,84.332,84.272,0.49011426]
[1772812397524,0.45762625,84.332,84.273,0.49011426]
[1772812397719,0.45762625,84.332,84.274,1.18660559]
[1772812397918,0.45762625,84.332,84.273,0.28432314]
[1772812397919,0.45762625,84.332,84.275,0.49011426]
[1772812398131,0.45762625,84.332,84.277,0.49011426]
[1772812398331,0.45762625,84.342,84.28,0.49011426]
[1772812398537,0.45762625,84.342,84.282,0.49011426]
[1772812398834,0.45762625,84.339,84.282,0.49011426]
[1772812399222,0.45762625,84.337,84.283,11.86478886]
[1772812399422,0.45762625,84.337,84.284,0.49011426]
[1772812400320,0.45762625,84.329,84.275,11.86591515]
[1772812401325,0.45762625,84.327,84.272,0.49011426]
[1772812402132,0.45762625,84.327,84.271,29.66616017]
[1772812402133,0.45762625,84.333,84.274,0.49011426]
[1772812402840,0.45762625,84.329,84.274,0.49011426]
[1772812403236,0.45762625,84.327,84.276,0.49011426]
[1772812405438,11.8587387,84.326,84.278,0.49011426]
[1772812405632,0.45762625,84.327,84.279,0.49011426]
[1772812405833,12.31627726,84.327,84.279,0.49011426]
[1772812406538,0.45762625,84.335,84.279,0.49011426]
[1772812407126,11.85667588,84.341,84.281,0.49011426]
[1772812407325,11.85667588,84.341,84.284,0.49011426]
[1772812407638,0.45762625,84.344,84.287,0.49011426]
[1772812407941,0.45762625,84.354,84.289,0.49011426]
[1772812408545,0.45762625,84.363,84.291,0.49011426]
[1772812408842,0.45762625,84.369,84.294,0.49011426]
[1772812409032,0.45762625,84.369,84.297,0.49011426]
[1772812409339,0.45762625,84.369,84.3,0.49011426]
[1772812409539,0.45762625,84.367,84.302,0.49011426]
[1772812411536,0.45762625,84.365,84.304,0.49011426]
[1772812413523,0.47251261,84.363,84.306,0.46792585]
[1772812416045,0.47251261,84.361,84.308,0.46792585]
[1772812417660,0.2,84.38,84.312,0.46792585]
[1772812417823,11.85129001,84.379,84.312,0.46792585]
[1772812418140,41.47951504,84.379,84.315,0.46792585]
[1772812419839,0.47251261,84.378,84.315,0.46792585]
[1772812420225,11.85157092,84.377,84.318,0.46792585]
[1772812420929,12.32408353,84.377,84.318,0.46792585]
[1772812421327,0.2,84.38,84.323,0.46792585]
[1772812421526,0.2,84.38,84.324,0.46792585]
[1772812421727,0.47251261,84.378,84.324,0.46792585]
[1772812423444,0.47251261,84.376,84.327,0.46792585]
[1772812425142,0.2,84.38,84.327,0.46792585]
[1772812425347,11.85129001,84.379,84.327,0.46792585]
[1772812425551,11.85129001,84.379,84.33,0.46792585]
[1772812426349,0.2,84.38,84.33,0.46792585]
[1772812426940,0.2,84.38,84.331,1.18580355]
[1772812427144,0.2,84.38,84.333,0.46792585]
[1772812427850,0.2,84.38,84.336,0.46792585]
[1772812429149,12.05122566,84.38,84.336,0.46792585]
[1772812429349,0.47251261,84.379,84.336,0.46792585]
[1772812429931,11.85143046,84.378,84.338,0.46792585]
[1772812430536,12.32394307,84.378,84.338,0.46792585]
[1772812430939,0.47251261,84.377,84.338,0.46792585]
[1772812432248,11.85171138,84.376,84.34,0.46792585]
[1772812432439,12.52367025,84.38,84.34,0.46792585]
[1772812432752,0.47251261,84.379,84.34,0.46792585]
[1772812432952,0.47251261,84.379,84.339,11.8569108]
[1772812433352,0.47251261,84.379,84.34,0.46792585]
[1772812434260,0.47251261,84.379,84.341,11.85662963]
[1772812434436,0.47251261,84.378,84.342,0.46792585]
[1772812434751,11.85129001,84.379,84.342,0.46792585]
[1772812434958,0.47251261,84.378,84.342,0.46792585]
[1772812436561,11.85129001,84.379,84.344,0.46496095]
[1772812436939,0.48692923,84.378,84.344,0.46496095]
[1772812437560,0.48692923,84.378,84.335,0.46496095]
[1772812437750,0.48692923,84.378,84.336,0.46496095]
[1772812438152,0.48692923,84.378,84.335,11.85736388]
[1772812438537,0.48692923,84.378,84.331,11.8580042]
[1772812438742,9.4752169,84.37,84.319,11.85972319]
[1772812438938,0.2,84.38,84.32,1.6509192]
[1772812439248,0.2,84.38,84.319,71.15833916]
[1772812439249,0.48692923,84.379,84.322,0.46496095]
[1772812439644,0.48692923,84.369,84.313,12.32548482]
[1772812440039,0.48692923,84.359,84.308,11.86120197]
[1772812440551,0.48692923,84.359,84.309,0.46496095]
[1772812440736,41.48984091,84.358,84.31,11.8609892]
[1772812440940,0.48692923,84.357,84.31,11.8609892]
[1772812441142,0.48692923,84.357,84.311,0.46496095]
[1772812443060,0.47933697,84.355,84.313,0.48945423]
[1772812444156,0.47933697,84.367,84.314,0.48945423]
[1772812445152,0.47933697,84.359,84.315,11.86028583]
[1772812445745,0.47933697,84.359,84.316,0.48945423]
[1772812446861,0.47933697,84.365,84.317,0.48945423]
[1772812447159,0.47933697,84.373,84.319,0.48945423]
[1772812447362,0.2,84.38,84.321,0.48945423]
[1772812447557,0.2,84.38,84.322,0.48945423]
[1772812447866,0.47933697,84.379,84.324,0.48945423]
[1772812448450,0.2,84.39,84.325,0.48945423]
[1772812448649,0.2,84.39,84.327,0.48945423]
[1772812448854,0.2,84.39,84.331,0.48945423]
[1772812449051,0.47933697,84.408,84.334,0.48945423]
[1772812449352,0.47933697,84.419,84.34,0.48945423]
[1772812449547,0.47933697,84.419,84.343,0.48945423]
[1772812450261,0.47933697,84.419,84.346,0.48945423]
[1772812450468,0.47933697,84.419,84.349,0.48945423]
[1772812450653,0.47933697,84.419,84.351,0.48945423]
[1772812451059,11.84499157,84.424,84.354,0.48945423]
[1772812451385,0.47933697,84.423,84.36,0.48945423]
[1772812453066,0.47933697,84.419,84.36,0.48945423]
[1772812453279,0.47933697,84.417,84.362,0.48945423]
[1772812454466,9.43119161,84.41,84.361,11.8538187]
[1772812454651,0.28432314,84.417,84.362,0.49620387]
[1772812454856,100.47374955,84.418,84.362,0.49620387]
[1772812455185,9.45185464,84.41,84.362,0.49620387]
[1772812455352,41.4647727,84.409,84.363,11.85353768]
[1772812455668,41.4647727,84.409,84.364,0.49620387]
[1772812456763,0.02070397,84.408,84.364,0.49620387]
[1772812457357,0.02070397,84.408,84.342,0.49620387]
[1772812457559,9.45185464,84.39,84.342,0.49620387]
[1772812457754,0.28432314,84.408,84.336,11.85733257]
[1772812457755,0.02070397,84.379,84.336,11.85733257]
[1772812458359,0.02070397,84.379,84.334,0.49620387]
[1772812458958,0.02070397,84.379,84.335,11.85747317]
[1772812459157,0.02070397,84.379,84.336,0.49620387]
[1772812459862,0.02381848,84.378,84.338,0.49620387]
[1772812461472,0.02381848,84.378,84.333,11.8576962]
[1772812461690,0.02483481,84.369,84.304,0.49620387]
[1772812461861,0.02584093,84.359,84.306,0.49620387]
[1772812462062,41.48443148,84.369,84.307,0.49620387]
[1772812462063,0.02584093,84.368,84.307,0.49620387]
[1772812462765,11.85269471,84.369,84.307,0.49620387]
[1772812462970,0.0268329,84.386,84.307,0.49620387]
[1772812462971,11.85143046,84.378,84.307,0.49620387]
[1772812463366,0.0268329,84.377,84.307,0.49620387]
[1772812464273,0.02780745,84.388,84.31,0.49620387]
[1772812465758,0.02780745,84.388,84.313,0.49620387]
[1772812466159,41.46821165,84.402,84.312,0.28432314]
[1772812466160,41.46821165,84.402,84.316,0.49620387]
[1772812466367,41.46821165,84.402,84.311,3.69383402]
[1772812466368,0.0297443,84.405,84.323,0.49620387]
[1772812466663,0.0297443,84.405,84.325,0.49620387]
[1772812467379,0.03068971,84.399,84.325,0.49620387]
[1772812467576,0.03068971,84.408,84.328,0.49620387]
[1772812467787,0.03068971,84.408,84.327,0.28432314]
[1772812467788,0.03068971,84.399,84.33,0.49620387]
[1772812467955,0.03162533,84.389,84.33,0.49620387]
[1772812468677,11.84988564,84.389,84.332,0.49620387]
[1772812469880,0.03345169,84.394,84.335,0.49620387]
[1772812470677,0.03345169,84.389,84.335,0.49620387]
[1772812471787,0.03614626,84.398,84.335,0.49620387]
[1772812471985,0.03614626,84.406,84.338,0.49620387]
[1772812472368,0.03614626,84.413,84.341,0.49620387]
[1772812472572,0.03614626,84.413,84.344,0.49620387]
[1772812473174,11.84637619,84.414,84.344,0.49620387]
[1772812473486,11.84637619,84.414,84.347,0.49620387]
[1772812473687,11.84637619,84.414,84.347,1.18557862]
[1772812473892,11.84637619,84.414,84.349,0.49620387]
[1772812474062,0.03702032,84.424,84.351,0.63836544]
[1772812474269,0.03702032,84.424,84.352,0.49620387]
[1772812475164,0.03702032,84.424,84.355,0.49620387]
[1772812475888,0.03958331,84.419,84.355,0.49620387]
[1772812476983,0.03958331,84.419,84.35,100.77059869]
[1772812476984,0.03958331,84.419,84.358,0.49620387]
[1772812478391,0.04124628,84.409,84.358,0.49620387]
[1772812478569,0.04124628,84.399,84.35,0.49620387]
[1772812479183,10.85288681,84.429,84.313,3.69383402]
[1772812479184,0.04206302,84.419,84.352,0.49620387]
[1772812479572,0.04206302,84.409,84.352,0.49620387]
[1772812479772,0.04288045,84.399,84.352,0.49620387]
[1772812481087,0.04288045,84.399,84.354,0.49620387]
[1772812481589,0.04368136,84.408,84.354,0.49620387]
[1772812482683,11.8465226,84.413,84.355,0.49620387]
[1772812482989,11.89177239,84.413,84.355,0.49620387]
[1772812483194,0.04524979,84.412,84.358,0.49620387]
[1772812483774,0.04602224,84.409,84.358,0.49620387]
[1772812485495,0.04678521,84.399,84.35,11.85536455]
[1772812485695,0.04678521,84.399,84.351,0.49620387]
[1772812487975,0.049033,84.398,84.353,0.49620387]
[1772812488490,11.84848161,84.399,84.353,0.49620387]
[1772812490105,0.05047662,84.414,84.355,0.49620387]
[1772812491286,0.05047662,84.414,84.356,0.49620387]
[1772812491709,0.05118718,84.424,84.356,0.49620387]
[1772812492088,0.05118718,84.424,84.359,0.49620387]
[1772812494312,0.05118718,84.424,84.361,0.49620387]
[1772812495994,0.05528983,84.419,84.361,0.49620387]
[1772812496415,0.05528983,84.418,84.363,0.49879182]
[1772812496614,0.05528983,84.409,84.363,0.49879182]
[1772812498398,0.05528983,84.409,84.365,0.49879182]
[1772812498595,29.61418637,84.419,84.365,0.49879182]
[1772812499315,0.05659048,84.425,84.365,0.49879182]
[1772812500403,0.05659048,84.425,84.368,0.49879182]
[1772812500702,0.05659048,84.425,84.367,41.4854149]
[1772812500703,0.0584967,84.419,84.369,0.49879182]
[1772812502494,0.05973579,84.418,84.369,0.49879182]
[1772812502715,0.05973579,84.418,84.37,11.85255422]
[1772812503215,0.05973579,84.418,84.37,12.34875809]
[1772812503520,0.05973579,84.418,84.371,0.49620387]
[1772812504913,29.61418637,84.419,84.373,0.49620387]
[1772812505503,11.90650329,84.424,84.373,0.49620387]
[1772812505706,11.84335396,84.436,84.374,0.49620387]
[1772812506418,0.06210963,84.435,84.374,0.49620387]
[1772812507222,0.06210963,84.435,84.376,0.49620387]
[1772812507742,0.06269395,84.443,84.377,0.49620387]
[1772812509398,72.60214681,84.458,84.364,1.18533971]
[1772812509399,0.06382244,84.453,84.382,0.28432314]
[1772812509603,0.06382244,84.453,84.387,0.49620387]
[1772812510205,0.06437697,84.456,84.387,0.49620387]
[1772812510711,0.2,84.46,84.392,0.49620387]
[1772812510905,11.83541242,84.493,84.396,3.69383402]
[1772812511104,11.83541242,84.493,84.401,0.49620387]
[1772812511420,0.0649233,84.492,84.408,0.49620387]
[1772812511615,0.0649233,84.492,84.414,0.49620387]
[1772812511804,0.06547275,84.479,84.414,0.49620387]
[1772812512003,0.06547275,84.469,84.414,0.49620387]
[1772812513115,0.06600778,84.459,84.406,0.49620387]
[1772812513320,0.06600778,84.458,84.408,0.49620387]
[1772812514412,0.06600778,84.458,84.382,0.28432314]
[1772812514413,0.06653683,84.449,84.399,0.49620387]
[1772812514610,0.06653683,84.449,84.397,11.84864249]
[1772812514812,0.06653683,84.449,84.397,12.34484636]
[1772812515322,0.06706342,84.456,84.4,0.49620387]
[1772812515521,0.06706342,84.455,84.4,0.49620387]
[1772812517518,0.06810397,84.463,84.402,0.49620387]
[1772812518103,11.8386627,84.469,84.403,0.49620387]
[1772812518310,0.06861143,84.468,84.403,0.49620387]
[1772812518913,11.83799503,84.474,84.405,0.49620387]
[1772812519509,0.06912003,84.49,84.413,0.28432314]
[1772812519725,11.83473969,84.497,84.418,0.49620387]
[1772812519911,11.83473969,84.497,84.416,3.69383402]
[1772812519912,41.49120996,84.497,84.421,0.49620387]
[1772812520231,0.06962104,84.496,84.421,0.49620387]
[1772812520625,0.06962104,84.496,84.423,0.49620387]
[1772812521725,0.07010691,84.494,84.425,0.49620387]
[1772812521920,11.83501982,84.495,84.426,0.49620387]
[1772812522139,11.83501982,84.495,84.428,0.49620387]
[1772812522435,7.25216139,84.498,84.431,0.49620387]
[1772812522621,0.2,84.51,84.436,0.49620387]
[1772812522825,6.1389367,84.508,84.437,0.49620387]
[1772812523129,0.07106532,84.498,84.437,0.49620387]
[1772812523629,11.90440457,84.507,84.442,0.49620387]
[1772812523832,11.90440457,84.507,84.443,0.49620387]
[1772812524214,0.07153623,84.506,84.443,0.49620387]
[1772812525519,0.2,84.51,84.446,0.49620387]
[1772812525823,0.2,84.51,84.441,3.69383402]
[1772812525824,0.2724614,84.543,84.452,0.49620387]
[1772812526025,0.2,84.55,84.462,0.47335076]
[1772812527636,0.2,84.55,84.467,0.47335076]
[1772812527823,0.2,84.55,84.468,0.47335076]
[1772812528033,0.2,84.55,84.463,100.63578134]
[1772812528034,0.2,84.55,84.474,0.47335076]
[1772812528825,0.2,84.55,84.475,12.3]
[1772812529141,0.2,84.55,84.48,0.47335076]
[1772812529321,0.27426334,84.549,84.48,0.47335076]
[1772812529519,0.27426334,84.548,84.48,0.47335076]
[1772812529720,0.27426334,84.546,84.486,0.47335076]
[1772812529934,12.02736807,84.55,84.486,0.47335076]
[1772812530437,0.27484886,84.549,84.486,0.47335076]
[1772812530934,0.27484886,84.549,84.485,0.28432314]
[1772812530935,0.2754283,84.548,84.491,0.47335076]